fUSD/lending_fUSD_20251130
["ID","MTS","AMOUNT","RATE_DAILY","PERIOD"]
[395174573,1764511844667,-5000.0,0.0002006,2]
[395174574,1764511844678,-177.88,0.00020082,2]
[395174575,1764511844688,-552.02,0.00020082,2]
[395174576,1764511844698,-300.64,0.00020082,2]
[395174577,1764511844709,-1000.0,0.00020116,2]
[395174578,1764511844719,-1097.0,0.00020182,2]
[395174579,1764511844728,-847.31,0.00020187,2]
[395174580,1764511844738,-309.03774685,0.00020274,2]
[395174581,1764511844747,-4500.0,0.00020343,2]
[395174582,1764511844757,-500.0,0.00020356,7]
[395174583,1764511844767,-500.0,0.00020356,7]
[395174584,1764511844777,-475.96245732,0.00020356,7]
[395174585,1764511844787,-150.0,0.00020392,2]
[395174586,1764511844797,-150.0,0.00020392,2]
[395174587,1764511844806,-150.0,0.00020392,2]
[395174588,1764511844816,-150.0,0.00020392,2]
[395174589,1764511844829,-150.0,0.00020392,2]
[395174590,1764511844838,-4500.0,0.00020393,2]
[395174591,1764511844848,-1900.0,0.00020429,2]
[395174592,1764511844859,-310.68826752,0.00020482,2]
[395174593,1764511844869,-1300.0,0.00020542,2]
[395174594,1764511844878,-190.9,0.00020548,2]
[395174595,1764511844888,-21394.73,0.00020548,2]
[395174596,1764511844900,-5000.0,0.00020608,2]
[395174597,1764511844910,-1900.0,0.00020612,2]
[395174598,1764511844919,-1000.0,0.0002062,2]
[395174599,1764511844928,-1600.0,0.00020688,2]
[395174600,1764511844937,-1900.0,0.00020695,2]
[395174601,1764511844947,-22529.57748285,0.000207,2]
[395174602,1764511844957,-2000.0,0.000207,2]
[395174603,1764511844966,-1300.0,0.00020757,2]
[395174604,1764511844975,-84566.48324037,0.00020786,2]
[395174605,1764511846058,-4.27072893,0.00020786,2]
[395174606,1764511846067,-13743.69755428,0.00020786,2]
[395174607,1764511846078,-5739.18585998,0.00020786,2]
[395174608,1764511846089,-4168.91043684,0.00020786,2]
[395174609,1764511846097,-13306.8785771,0.00020786,2]
[395174610,1764511846106,-1300.0,0.00020788,2]
[395174611,1764511846116,-1000.0,0.00020795,2]
[395174612,1764511846126,-1792.10574,0.0002083,2]
[395174613,1764511846135,-287.61899177,0.00020879,2]
[395174614,1764511846144,-185.89678075,0.00020879,2]
[395174615,1764511846154,-1900.0,0.00020893,2]
[395174616,1764511846163,-164.38079063,0.00020899,2]
[395174617,1764511846172,-323.73082828,0.000209,3]
[395174618,1764511846181,-150.0,0.00020904,2]
[395174619,1764511846190,-552.02,0.00020904,2]
[395174620,1764511846200,-552.02,0.00020904,2]
[395174621,1764511846209,-552.02,0.00020904,2]
[395174622,1764511846218,-552.02,0.00020904,2]
[395174623,1764511846227,-177.88,0.00020904,2]
[395174624,1764511846236,-1091.65905463,0.00020909,2]
[395174625,1764511846422,-533.48447,0.00015053,2]
[395174626,1764511846435,-28.51553,0.00015053,2]
[395174627,1764511846444,-562.0,0.00018053,2]
[395174628,1764511846453,-1134.60447,0.00020909,2]
[395174629,1764511846472,-64609.79429862,0.00020909,2]
[395174630,1764511846604,-438.0,0.00020082,2]
[395174631,1764511846658,-114.02,0.00020082,2]
[395174632,1764511846668,-177.88,0.00020082,2]
[395174633,1764511846677,-1135.41909793,0.00020909,2]
[395174634,1764511846688,-1081.75005,0.00020909,2]
[395174635,1764511846700,-2971.65683392,0.00020909,2]
[395174636,1764511846709,-1900.0,0.00020964,2]
[395174637,1764511846718,-4609.0,0.00020978,2]
[395174638,1764511846727,-500.0,0.00020986,2]
[395174639,1764511846738,-20000.0,0.00021,2]
[395174640,1764511846747,-1185.89629015,0.00021,2]
[395174641,1764511846757,-195.74893453,0.00021,2]
[395174642,1764511846766,-188.0,0.00021,2]
[395174643,1764511846775,-350.0,0.00021,2]
[395174644,1764511846784,-4500.0,0.0002102,2]
[395174645,1764511846793,-150.0,0.00021053,2]
[395174646,1764511846802,-1321.0,0.00021053,2]
[395174647,1764511846811,-610.0,0.00021053,2]
[395174648,1764511846824,-3442.0,0.00021053,2]
[395174649,1764511846833,-640.0,0.00021053,2]
[395174650,1764511846843,-1258.0,0.00021053,2]
[395174651,1764511846852,-909.0,0.00021053,2]
[395174652,1764511846862,-1193.0,0.00021053,2]
[395174653,1764511846871,-2718.0,0.00021053,2]
[395174654,1764511846880,-6506.0,0.00021053,2]
[395174655,1764511846889,-562.0,0.00021053,2]
[395174656,1764511846900,-500.0,0.0002106,2]
[395174657,1764511846910,-4112.78697219,0.00021068,2]
[395174658,1764511846921,-358.79945644,0.00021068,2]
[395174745,1764512280976,161.53,8.011e-05,2]
[395174854,1764513032293,-1500.0,0.000136,2]
[395174855,1764513032302,-300.0,0.00013901,2]
[395174856,1764513032312,-1200.0,0.00013901,2]
[395174857,1764513032322,-201.0,0.00013901,2]
[395174858,1764513032331,-1200.0,0.00013902,2]
[395174859,1764513032341,-150.0,0.00013902,2]
[395174860,1764513032351,-308.77783628,0.00013902,2]
[395174861,1764513032361,-500.0,0.00013902,2]
[395174862,1764513032370,-500.0,0.00013902,2]
[395174863,1764513032382,-500.0,0.00013902,2]
[395174864,1764513032392,-500.0,0.00013902,2]
[395174865,1764513032403,-606.94473082,0.00013902,2]
[395174866,1764513032412,-294.40072762,0.00013902,2]
[395174867,1764513032422,-500.0,0.00013902,2]
[395174868,1764513032431,-500.0,0.00013902,2]
[395174869,1764513032441,-37.92136019,0.00013902,2]
[395174870,1764513032482,-462.07863981,0.00013902,2]
[395174871,1764513032491,-500.0,0.00013902,2]
[395174872,1764513032501,-500.0,0.00013902,2]
[395174873,1764513032511,-195.0,0.00013903,2]
[395174874,1764513032520,-500.0,0.00013903,2]
[395174899,1764513032854,-500.0,0.00013903,2]
[395174903,1764513032888,-500.0,0.00013903,2]
[395174905,1764513032898,-500.0,0.00013903,2]
[395174907,1764513032907,-500.0,0.00013903,2]
[395174909,1764513032918,-500.0,0.00013903,2]
[395174912,1764513032927,-500.0,0.00013903,2]
[395174913,1764513032936,-500.0,0.00013903,2]
[395174915,1764513032946,-500.0,0.00013903,2]
[395174917,1764513032955,-500.0,0.00013903,2]
[395174920,1764513032964,-500.0,0.00013903,2]
[395174922,1764513032974,-500.0,0.00013903,2]
[395174923,1764513032983,-500.0,0.00013903,2]
[395174925,1764513032992,-500.0,0.00013903,2]
[395174927,1764513033002,-500.0,0.00013903,2]
[395174929,1764513033011,-500.0,0.00013903,2]
[395174931,1764513033020,-500.0,0.00013903,2]
[395174933,1764513033030,-500.0,0.00013903,2]
[395174935,1764513033039,-500.0,0.00013903,2]
[395174937,1764513033049,-500.0,0.00013903,2]
[395174939,1764513033058,-500.0,0.00013903,2]
[395174941,1764513033067,-500.0,0.00013903,2]
[395174943,1764513033077,-500.0,0.00013903,2]
[395174945,1764513033086,-500.0,0.00013903,2]
[395174947,1764513033095,-500.0,0.00013903,2]
[395174949,1764513033105,-500.0,0.00013903,2]
[395174951,1764513033114,-500.0,0.00013903,2]
[395174953,1764513033123,-500.0,0.00013903,2]
[395174955,1764513033133,-500.0,0.00013903,2]
[395174957,1764513033143,-500.0,0.00013903,2]
[395174959,1764513033152,-500.0,0.00013903,2]
[395174961,1764513033162,-500.0,0.00013903,2]
[395174964,1764513033171,-500.0,0.00013903,2]
[395174965,1764513033180,-241.34748321,0.00013903,2]
[395174967,1764513033190,-2898.142,0.00013944,2]
[395174970,1764513033200,-154.564,0.00013944,2]
[395174972,1764513033209,-195.0,0.00013964,2]
[395174974,1764513033220,-170.26213298,0.00014027,2]
[395174975,1764513033230,-187.64541037,0.00014027,2]
[395174977,1764513033240,-500.0,0.00014027,2]
[395174979,1764513033249,-356.00130587,0.00014027,2]
[395174981,1764513033259,-9771.68717424,0.00014028,2]
[395174983,1764513033268,-186.70664908,0.00014028,2]
[395174985,1764513033278,-5062.25902505,0.00014029,2]
[395174990,1764513033328,-500.0,0.00013902,2]
[395174992,1764513033338,-500.0,0.00013902,2]
[395174994,1764513033348,-3952.65,0.00014029,2]
[395174996,1764513033359,-933.10375,0.00014029,2]
[395174999,1764513033377,-1006.33251468,0.00014029,2]
[395175036,1764513038408,-500.0,0.00013902,2]
[395175037,1764513038417,-500.0,0.00013902,2]
[395175038,1764513038427,-500.0,0.00013902,2]
[395175039,1764513038436,-500.0,0.00013902,2]
[395175040,1764513038446,-500.0,0.00013902,2]
[395175041,1764513038456,-500.0,0.00013902,2]
[395175042,1764513038466,-500.0,0.00013902,2]
[395175043,1764513038475,-500.0,0.00013902,2]
[395175044,1764513038484,-500.0,0.00013902,2]
[395175045,1764513038493,-613.97081904,0.00013902,2]
[395175049,1764513038503,-500.0,0.00013902,2]
[395175050,1764513038820,-500.0,0.00013902,2]
[395175051,1764513038830,-500.0,0.00013902,2]
[395175052,1764513038840,-500.0,0.00013902,2]
[395175053,1764513038850,-500.0,0.00013902,2]
[395175054,1764513038860,-500.0,0.00013902,2]
[395175055,1764513038870,-500.0,0.00013902,2]
[395175056,1764513038879,-500.0,0.00013902,2]
[395175057,1764513038889,-500.0,0.00013902,2]
[395175058,1764513038899,-500.0,0.00013902,2]
[395175059,1764513038909,-500.0,0.00013902,2]
[395175060,1764513038919,-500.0,0.00013902,2]
[395175061,1764513038928,-500.0,0.00013902,2]
[395175062,1764513038938,-200.79302834,0.00013902,2]
[395175063,1764513038951,-299.20697166,0.00013902,2]
[395175064,1764513038961,-500.0,0.00013902,2]
[395175065,1764513038973,-169.62202013,0.00014029,2]
[395175066,1764513038985,-960.35,0.00014029,2]
[395175067,1764513038997,-747915.68269014,0.00014029,2]
[395175068,1764513039007,-1453.12097614,0.00014129,2]
[395175069,1764513039017,-500.0,0.00014129,2]
[395175070,1764513039028,-500.0,0.00014129,2]
[395175071,1764513039038,-500.0,0.00014129,2]
[395175072,1764513039048,-500.0,0.00014129,2]
[395175073,1764513039058,-500.0,0.00014129,2]
[395175074,1764513039067,-500.0,0.00014129,2]
[395175075,1764513039077,-500.0,0.00014129,2]
[395175076,1764513039086,-500.0,0.00014129,2]
[395175077,1764513039096,-500.0,0.00014129,2]
[395175078,1764513039105,-500.0,0.00014129,2]
[395175079,1764513039115,-500.0,0.00014129,2]
[395175080,1764513039124,-500.0,0.00014129,2]
[395175081,1764513039133,-500.0,0.00014129,2]
[395175082,1764513039142,-500.0,0.00014129,2]
[395175083,1764513039152,-500.0,0.00014129,2]
[395175084,1764513039160,-500.0,0.00014129,2]
[395175085,1764513039169,-197.92719606,0.00014129,2]
[395175086,1764513039178,-500.0,0.00014221,2]
[395175087,1764513039187,-500.0,0.00014228,2]
[395175088,1764513039198,-500.0,0.00014228,2]
[395175089,1764513039208,-500.0,0.00014228,2]
[395175090,1764513039218,-600.0,0.00014229,2]
[395175091,1764513039229,-33399.3792,0.00014229,2]
[395175092,1764513039239,-1000.0,0.00014229,2]
[395175093,1764513039249,-250.0,0.000143,2]
[395175094,1764513039259,-250.0,0.000143,2]
[395175095,1764513039268,-250.0,0.000143,2]
[395175096,1764513039278,-250.0,0.000143,2]
[395175097,1764513039289,-250.0,0.000143,2]
[395175098,1764513039299,-250.0,0.000143,2]
[395175099,1764513039308,-250.0,0.000143,2]
[395175100,1764513039318,-9771.6871742,0.00014347,2]
[395175101,1764513039328,-1835.80052398,0.0001439,2]
[395175102,1764513039337,-500.0,0.00014428,2]
[395175103,1764513039346,-519.79569884,0.00014428,2]
[395175104,1764513039355,-500.0,0.00014428,2]
[395175105,1764513039364,-507.06907365,0.00014428,2]
[395175106,1764513039375,-1453.12097609,0.00014438,2]
[395175107,1764513039395,-600.0,0.00014503,2]
[395175108,1764513039404,-2484.6,0.000146,2]
[395175109,1764513039414,-9771.6871742,0.00014666,2]
[395175110,1764513039424,-1000.0,0.00014723,2]
[395175111,1764513039433,-1453.12097609,0.00014746,2]
[395175112,1764513039442,-600.0,0.00014777,2]
[395175113,1764513039450,-171.51045652,0.000149,2]
[395175114,1764513039460,-186.70664906,0.00014964,2]
[395175115,1764513039470,-9771.6871742,0.00014985,2]
[395175116,1764513039481,-151.0,0.00014997,2]
[395175117,1764513039490,-1358.9209654,0.00015,2]
[395175118,1764513039500,-288508.54175915,0.00015,4]
[395175119,1764513039509,-12037.00064594,0.00015,2]
[395175120,1764513039518,-255.0,0.00015014,2]
[395175121,1764513039526,-600.0,0.00015051,2]
[395175122,1764513039535,-1453.12097609,0.00015055,2]
[395175123,1764513039546,-420.0,0.00015231,2]
[395175124,1764513039556,-732.0,0.00015232,2]
[395175125,1764513039566,-250.0,0.00015266,2]
[395175126,1764513039576,-1680.0,0.00015291,2]
[395175127,1764513039586,-195.0,0.00015291,2]
[395175128,1764513039595,-195.0,0.00015292,2]
[395175129,1764513039604,-250.0,0.00015292,2]
[395175130,1764513039613,-705.05,0.000153,2]
[395175131,1764513039623,-9771.6871742,0.00015304,2]
[395175132,1764513039632,-600.0,0.00015325,2]
[395175133,1764513039641,-1453.12097609,0.00015364,2]
[395175134,1764513039650,-171.51045652,0.000154,2]
[395175135,1764513039659,-718.62,0.00015599,2]
[395175136,1764513039668,-9771.6871742,0.00015624,2]
[395175137,1764513039677,-1453.12097609,0.00015672,2]
[395175138,1764513039686,-200.0,0.00015889,2]
[395175139,1764513039695,-1599.999999,0.000159,2]
[395175140,1764513039705,-171.51045652,0.000159,2]
[395175141,1764513039714,-186.70664906,0.000159,2]
[395175142,1764513039722,-640.0,0.00015902,2]
[395175143,1764513039732,-1258.0,0.00015902,2]
[395175144,1764513039741,-909.0,0.00015902,2]
[395175145,1764513039750,-1193.0,0.00015902,2]
[395175146,1764513039759,-252.0,0.00015902,2]
[395175147,1764513039768,-1603.0,0.00015902,2]
[395175148,1764513039777,-2718.0,0.00015902,2]
[395175149,1764513039786,-164.38079063,0.00015963,2]
[395175150,1764513039795,-172.14260256,0.00015973,2]
[395175151,1764513039804,-500.0,0.00015973,2]
[395175152,1764513039813,-500.0,0.00015973,2]
[395175153,1764513039821,-500.0,0.00015973,2]
[395175154,1764513039831,-500.0,0.00015973,2]
[395175155,1764513039840,-500.0,0.00015973,2]
[395175156,1764513039849,-500.0,0.00015973,2]
[395175157,1764513039858,-500.0,0.00015973,2]
[395175158,1764513039867,-500.0,0.00015973,2]
[395175159,1764513039877,-500.0,0.00015973,2]
[395175160,1764513039886,-500.0,0.00015973,2]
[395175161,1764513039895,-506.31065896,0.00015973,2]
[395175162,1764513039904,-500.65013658,0.00015973,2]
[395175163,1764513039914,-500.0,0.00015973,2]
[395175164,1764513039923,-500.0,0.00015973,2]
[395175165,1764513039932,-500.0,0.00015973,2]
[395175166,1764513039942,-196.8967906,0.00015973,2]
[395175167,1764513039951,-1453.12097609,0.00015981,2]
[395175168,1764513039960,-319.26681909,0.00016,2]
[395175169,1764513039970,-23666.07387272,0.00016,2]
[395175170,1764513039979,-217943.91760979,0.00016,2]
[395175171,1764513039989,-245161.61737061,0.00016,4]
[395175172,1764513039998,-19643.88,0.00016101,2]
[395175173,1764513040007,-5000.00745737,0.000162,5]
[395175174,1764513040017,-433.0,0.0001621,2]
[395175175,1764513040026,-1453.12097609,0.0001629,2]
[395175176,1764513040035,-200.0,0.0001634,2]
[395175177,1764513040044,-171.51045652,0.000164,2]
[395175178,1764513040053,-500.0,0.00016438,2]
[395175179,1764513040063,-500.0,0.00016438,2]
[395175180,1764513040072,-500.0,0.00016438,2]
[395175181,1764513040081,-500.0,0.00016438,2]
[395175182,1764513040091,-229.36673625,0.00016438,2]
[395175183,1764513040101,-800.0,0.00016438,2]
[395175184,1764513040111,-160.11734806,0.000165,2]
[395175185,1764513040121,-1000.0,0.00016521,2]
[395175186,1764513040130,-1000.0,0.00016521,2]
[395175187,1764513040139,-1000.0,0.00016521,2]
[395175188,1764513040148,-501.35128612,0.00016521,2]
[395175189,1764513040158,-1000.0,0.00016521,2]
[395175190,1764513040167,-1000.0,0.00016521,2]
[395175191,1764513040177,-1000.0,0.00016521,2]
[395175192,1764513040187,-707.48162006,0.00016521,2]
[395175193,1764513040196,-1000.0,0.00016521,2]
[395175194,1764513040206,-1000.0,0.00016521,2]
[395175195,1764513040215,-1000.0,0.00016521,2]
[395175196,1764513040224,-1000.0,0.00016564,2]
[395175197,1764513040234,-1453.12097609,0.00016598,2]
[395175198,1764513040243,-2310.0,0.00016681,2]
[395175200,1764513040253,-557.0,0.00016688,2]
[395175201,1764513040262,-158.15528776,0.00016705,2]
[395175202,1764513040271,-2310.0,0.00016716,2]
[395175204,1764513040280,-2310.0,0.00016805,2]
[395175206,1764513040289,-2351.0,0.0001682,2]
[395175207,1764513040299,-2310.0,0.00016823,2]
[395175208,1764513040309,-2310.0,0.00016824,2]
[395175209,1764513040318,-287.07806865,0.00016894,2]
[395175210,1764513040327,-5000.0,0.00016894,2]
[395175211,1764513040336,-151.0,0.00016894,2]
[395175212,1764513040345,-578.20924308,0.00016894,2]
[395175213,1764513040354,-257.91778498,0.00016894,2]
[395175214,1764513040363,-201.41866534,0.000169,2]
[395175215,1764513040372,-171.51045652,0.000169,2]
[395175216,1764513040386,-1453.12097609,0.00016907,2]
[395175217,1764513040396,-150.99,0.00016922,2]
[395175218,1764513040405,-857.06,0.00016922,2]
[395175219,1764513040415,-299.99,0.00016922,4]
[395175220,1764513040425,-2000.0,0.00016957,2]
[395175221,1764513040434,-2000.0,0.00016957,2]
[395175222,1764513040443,-2000.0,0.00016957,2]
[395175223,1764513040452,-2000.0,0.00016957,2]
[395175224,1764513040461,-2000.0,0.00016957,2]
[395175225,1764513040471,-1425.646,0.00016957,2]
[395175226,1764513040479,-1000.0,0.0001697,2]
[395175227,1764513040488,-500.0,0.00016973,2]
[395175228,1764513040497,-500.0,0.00016973,2]
[395175229,1764513040506,-500.0,0.00016973,2]
[395175230,1764513040515,-500.0,0.00016973,2]
[395175231,1764513040524,-500.0,0.00016973,2]
[395175232,1764513040533,-500.0,0.00016973,2]
[395175233,1764513040542,-500.0,0.00016973,2]
[395175234,1764513040551,-500.0,0.00016973,2]
[395175235,1764513040560,-500.0,0.00016973,2]
[395175236,1764513040569,-500.0,0.00016973,2]
[395175237,1764513040578,-500.0,0.00016973,2]
[395175238,1764513040587,-500.0,0.00016973,2]
[395175239,1764513040597,-500.0,0.00016973,2]
[395175240,1764513040606,-500.0,0.00016973,2]
[395175241,1764513040615,-500.75968259,0.00016973,2]
[395175242,1764513040625,-500.0,0.00016973,2]
[395175243,1764513040635,-500.0,0.00016973,2]
[395175244,1764513040645,-500.0,0.00016973,2]
[395175245,1764513040654,-500.0,0.00016973,2]
[395175246,1764513040664,-500.0,0.00016973,2]
[395175247,1764513040676,-500.0,0.00016973,2]
[395175248,1764513040686,-415.54250471,0.00016973,2]
[395175249,1764513040696,-500.0,0.00016973,2]
[395175250,1764513040707,-500.0,0.00016973,2]
[395175251,1764513040716,-500.0,0.00016973,2]
[395175252,1764513040725,-200.00768026,0.00016973,2]
[395175253,1764513040734,-172.99922432,0.00016973,2]
[395175254,1764513040742,-1347.0,0.00016986,2]
[395175255,1764513040751,-150.0,0.0001699,2]
[395175256,1764513040760,-150.0,0.0001699,2]
[395175257,1764513040769,-200.0,0.0001699,2]
[395175258,1764513040777,-285.29372692,0.0001699,2]
[395175259,1764513040786,-150.0,0.0001699,2]
[395175260,1764513040795,-150.0,0.0001699,2]
[395175261,1764513040805,-150.0,0.0001699,2]
[395175262,1764513040814,-150.0,0.0001699,2]
[395175263,1764513040823,-150.0,0.0001699,2]
[395175264,1764513040832,-158.73149787,0.0001699,2]
[395175265,1764513040841,-500.0,0.0001699,2]
[395175266,1764513040850,-164.38079063,0.0001699,2]
[395175267,1764513040859,-151.0,0.00016997,2]
[395175268,1764513040868,-331.0821075,0.00016999,2]
[395175269,1764513040877,-300.0,0.00016999,2]
[395175270,1764513040886,-250.0,0.00017,2]
[395175271,1764513040895,-74617.02504029,0.00017,2]
[395175272,1764513040904,-4802931.16651171,0.00017,2]
[395175273,1764513040982,-1321.0,0.00015902,2]
[395175274,1764513040992,-500.21383285,0.00015973,2]
[395175275,1764513041001,-8345.35434975,0.00017,2]
[395175276,1764513041012,-11710.31536572,0.00017,2]
[395175277,1764513041023,-1421.76578285,0.00017,2]
[395175278,1764513041034,-3242.15241526,0.00017,2]
[395175279,1764513041045,-3584763.8925665,0.00017,2]
[395175280,1764513041080,-530.6,0.000159,2]
[395175281,1764513041091,-415.14097821,0.000159,2]
[395175282,1764513041100,-1219.50529131,0.00017,2]
[395175295,1764513043862,-1128.1501817,0.00015943,2]
[395175296,1764513043874,-922.84192,0.00015943,2]
[395175297,1764513043950,-867.26068256,0.00015943,2]
[395175300,1764513046288,-945.74097821,0.000159,2]
[395175301,1764513046298,-292.38969323,0.00015943,2]
[395175405,1764514231388,-500.0,0.00013495,2]
[395175406,1764514231398,-139.18954321,0.00013844,2]
[395175407,1764514231425,-543.98998276,0.00013844,2]
[395175408,1764514231436,-516.82047403,0.00013844,2]
[395175409,1764514231447,-76.0457565,0.00013845,2]
[395175410,1764514231551,-553.0612838,0.00013845,2]
[395175411,1764514231563,-366.13195705,0.00013845,2]
[395175412,1764514231574,-204.76100265,0.00013845,2]
[395175413,1764514231583,-300.0,0.00013845,2]
[395175414,1764514231593,-3948.719,0.00013846,2]
[395175415,1764514231603,-210.593,0.00013846,2]
[395175416,1764514231612,-195.0,0.00013847,2]
[395175417,1764514231621,-501.73720007,0.00013929,2]
[395175418,1764514231630,-150.0,0.00014024,2]
[395175419,1764514231640,-508.69,0.00014024,2]
[395175420,1764514231649,-500.0,0.00014024,2]
[395175421,1764514231658,-500.0,0.00014024,2]
[395175422,1764514231667,-500.0,0.00014024,2]
[395175423,1764514231677,-500.0,0.00014024,2]
[395175424,1764514231686,-500.0,0.00014024,2]
[395175425,1764514231696,-500.0,0.00014024,2]
[395175426,1764514231705,-500.0,0.00014024,2]
[395175427,1764514231714,-500.0,0.00014024,2]
[395175428,1764514231724,-500.0,0.00014024,2]
[395175429,1764514231732,-500.0,0.00014024,2]
[395175430,1764514231742,-500.0,0.00014024,2]
[395175432,1764514231752,-156.3970819,0.00014024,2]
[395175434,1764514231761,-500.0,0.00014024,2]
[395175435,1764514231770,-500.0,0.00014024,2]
[395175436,1764514231780,-500.0,0.00014024,2]
[395175437,1764514231789,-500.0,0.00014024,2]
[395175438,1764514231798,-500.0,0.00014024,2]
[395175439,1764514231807,-500.0,0.00014024,2]
[395175440,1764514231816,-500.0,0.00014024,2]
[395175441,1764514231825,-500.0,0.00014024,2]
[395175442,1764514231835,-500.0,0.00014024,2]
[395175443,1764514231844,-500.0,0.00014024,2]
[395175444,1764514231853,-500.0,0.00014024,2]
[395175445,1764514231863,-500.0,0.00014024,2]
[395175446,1764514231872,-500.0,0.00014024,2]
[395175447,1764514231882,-500.0,0.00014024,2]
[395175448,1764514231891,-500.0,0.00014024,2]
[395175449,1764514231901,-500.0,0.00014024,2]
[395175450,1764514231910,-500.0,0.00014024,2]
[395175451,1764514231919,-650.0,0.00014024,2]
[395175452,1764514231932,-500.0,0.00014024,2]
[395175453,1764514231941,-8276.37023673,0.00014029,2]
[395175454,1764514231951,-1648.78907686,0.00014029,2]
[395175455,1764514231967,-700.36150344,0.00014029,2]
[395175456,1764514231979,-6124.30362874,0.00014029,2]
[395175457,1764514231988,-1000.0,0.00014029,2]
[395175458,1764514231997,-15290.08032905,0.00014029,2]
[395175459,1764514232010,-3656.82895636,0.00014029,2]
[395175463,1764514238835,-500.0,0.00014028,2]
[395175464,1764514238845,-239.58813813,0.00014028,2]
[395175465,1764514238855,-15494.72152181,0.00014029,2]
[395175466,1764514238867,-507.96196028,0.00014029,2]
[395175467,1764514238892,-610.485,0.00014029,2]
[395175468,1764514238904,-1435.01372745,0.00014029,2]
[395175470,1764514238916,-12381.3311884,0.00014029,2]
[395175471,1764514238939,-1399.95,0.00014029,2]
[395175472,1764514238952,-709223.62731665,0.00014029,2]
[395175473,1764514238962,-676.1329,0.00014029,2]
[395175474,1764514238972,-200.0,0.00014121,2]
[395175475,1764514238983,-500.0,0.00014121,2]
[395175476,1764514238992,-500.0,0.00014121,2]
[395175477,1764514239002,-500.0,0.00014121,2]
[395175478,1764514239013,-500.0,0.00014121,2]
[395175479,1764514239022,-500.0,0.00014121,2]
[395175480,1764514239033,-500.0,0.00014121,2]
[395175481,1764514239042,-500.0,0.00014121,2]
[395175482,1764514239052,-500.0,0.00014121,2]
[395175483,1764514239061,-500.0,0.00014121,2]
[395175484,1764514239071,-500.0,0.00014121,2]
[395175485,1764514239082,-500.0,0.00014121,2]
[395175486,1764514239092,-500.0,0.00014121,2]
[395175487,1764514239102,-500.0,0.00014121,2]
[395175488,1764514239112,-500.0,0.00014121,2]
[395175489,1764514239122,-500.0,0.00014121,2]
[395175490,1764514239131,-500.0,0.00014121,2]
[395175491,1764514239141,-500.0,0.00014121,2]
[395175492,1764514239151,-500.0,0.00014121,2]
[395175493,1764514239161,-500.0,0.00014121,2]
[395175494,1764514239170,-500.0,0.00014121,2]
[395175495,1764514239180,-500.0,0.00014121,2]
[395175496,1764514239190,-500.0,0.00014121,2]
[395175497,1764514239200,-500.0,0.00014121,2]
[395175498,1764514239209,-500.0,0.00014121,2]
[395175499,1764514239219,-500.0,0.00014121,2]
[395175500,1764514239228,-200.0,0.00014121,2]
[395175501,1764514239238,-500.0,0.00014121,2]
[395175502,1764514239247,-500.0,0.00014121,2]
[395175503,1764514239257,-332.12231322,0.00014121,2]
[395175504,1764514239267,-151.0,0.00014121,2]
[395175505,1764514239277,-151.0,0.00014121,2]
[395175506,1764514239287,-151.0,0.00014121,2]
[395175507,1764514239296,-151.0,0.00014121,2]
[395175508,1764514239306,-151.0,0.00014121,2]